bitfinex/quotes_BTCUSD_20250208
["timestamp","ask_amount","ask_price","bid_price","bid_amount"]
[1739029923862,0.28289751,95894.0,95893.0,0.1769535]
[1739029924072,0.28289751,95894.0,95893.0,0.3333775]
[1739029924488,0.23439751,95894.0,95893.0,0.3333775]
[1739029926167,0.23439751,95894.0,95893.0,0.1769535]
[1739029926789,0.23439751,95894.0,95893.0,0.3333775]
[1739029927438,0.23439751,95894.0,95893.0,0.1769535]
[1739029929418,0.23439751,95894.0,95893.0,0.3333775]
[1739029929980,0.23439751,95894.0,95893.0,0.1769535]
[1739029931269,0.47351951,95894.0,95893.0,0.1769535]
[1739029931614,0.53131951,95894.0,95893.0,0.05077771]
[1739029931808,0.53131951,95894.0,95893.0,0.01822428]
[1739029932809,0.53142631,95894.0,95893.0,0.01822428]
[1739029932961,0.54142631,95894.0,95893.0,0.01822428]
[1739029936249,0.54142631,95894.0,95893.0,0.00022428]
[1739029936456,0.54142631,95894.0,95893.0,0.00922428]
[1739029936670,0.54142631,95894.0,95893.0,0.01822428]
[1739029937071,0.54142631,95894.0,95893.0,0.00922428]
[1739029937277,0.54142631,95894.0,95893.0,0.01822428]
[1739029937676,0.54142631,95894.0,95893.0,0.00922428]
[1739029937879,0.54142631,95894.0,95893.0,0.00022428]
[1739029938056,0.54142631,95894.0,95893.0,0.00922428]
[1739029938428,0.54142631,95894.0,95893.0,0.01822428]
[1739029939252,0.54102482,95894.0,95893.0,0.01822428]
[1739029941076,0.54102482,95894.0,95893.0,0.00022428]
[1739029941288,0.54102482,95894.0,95893.0,0.00922428]
[1739029941489,0.54102482,95894.0,95893.0,0.01722428]
[1739029942459,0.54102482,95894.0,95893.0,0.00822428]
[1739029942916,0.71402482,95894.0,95893.0,0.01622428]
[1739029943085,0.81652847,95894.0,95893.0,0.02422428]
[1739029943296,0.81652847,95894.0,95893.0,0.00822428]
[1739029943538,0.81652847,95894.0,95893.0,0.00022428]
[1739029943772,0.81652847,95894.0,95893.0,0.01422428]
[1739029943979,0.91903212,95894.0,95893.0,0.00722428]
[1739029944183,0.289945,95880.0,95879.0,0.09380486]
[1739029944784,0.1235,95879.0,95872.0,0.09380486]
[1739029944986,0.01,95880.0,95872.0,0.09380486]
[1739029944987,0.289956,95873.0,95872.0,0.09380486]
[1739029945195,0.52395202,95873.0,95872.0,0.09380486]
[1739029945395,0.52395202,95873.0,95872.0,0.11404971]
[1739029945594,0.52395202,95873.0,95872.0,0.09380486]
[1739029946816,0.52495202,95873.0,95872.0,0.10980486]
[1739029947393,0.53495202,95873.0,95872.0,0.10980486]
[1739029948679,0.53495202,95873.0,95872.0,0.016]
[1739029950396,0.55795202,95873.0,95872.0,0.016]
[1739029952132,0.279963,95869.0,95868.0,0.0001068]
[1739029952338,0.289963,95869.0,95868.0,0.0001068]
[1739029952573,0.299963,95869.0,95868.0,0.0001068]
[1739029953491,0.299963,95869.0,95868.0,0.0061068]
[1739029954026,0.299963,95869.0,95868.0,0.0121068]
[1739029954632,0.53395902,95869.0,95868.0,0.0121068]
[1739029966511,0.53368262,95869.0,95868.0,0.0121068]
[1739029976898,0.52368262,95869.0,95868.0,0.0121068]
[1739029977243,0.53368262,95869.0,95868.0,0.0121068]
[1739029979060,0.53378942,95869.0,95868.0,0.0121068]
[1739029982052,0.24410282,95869.0,95868.0,0.0121068]
[1739029982184,0.23410282,95869.0,95868.0,0.30367136]
[1739029982388,0.23410282,95869.0,95868.0,0.14720636]
[1739029982590,0.23410282,95869.0,95868.0,0.16964044]
[1739029983029,0.23410282,95869.0,95868.0,0.32610544]
[1739029983455,0.23410282,95869.0,95868.0,0.32010544]
[1739029983600,0.23410282,95869.0,95868.0,0.32910544]
[1739029984032,0.23410282,95869.0,95868.0,0.32310544]
[1739029984417,0.23410282,95869.0,95868.0,0.33210544]
[1739029987751,0.23410282,95869.0,95868.0,0.4259103]
[1739029990550,0.23410282,95869.0,95868.0,0.33210544]
[1739029996345,0.23410282,95869.0,95868.0,0.28709755]
[1739029997450,0.23410282,95869.0,95868.0,0.25450164]
[1739029998874,0.23410282,95869.0,95868.0,0.28702279]
[1739029999303,0.0001068,95869.0,95868.0,0.28702279]
[1739030000238,0.0001068,95869.0,95868.0,0.44902279]
[1739030001203,0.0001068,95869.0,95868.0,0.44002279]
[1739030001453,0.0001068,95869.0,95868.0,0.43102279]
[1739030001663,0.0001068,95869.0,95868.0,0.44002279]
[1739030003053,0.0001068,95869.0,95868.0,0.44902279]
[1739030003749,0.0001068,95869.0,95868.0,0.44912959]
[1739030014442,0.0001068,95869.0,95868.0,0.43712959]
[1739030014618,0.0001068,95869.0,95868.0,0.44516959]
[1739030018440,0.0001068,95869.0,95868.0,0.44996959]
[1739030019412,0.0001068,95869.0,95868.0,0.44096959]
[1739030020043,0.0001068,95869.0,95868.0,0.44996959]
[1739030022961,0.0001068,95869.0,95868.0,0.47296959]
[1739030023417,0.0001068,95869.0,95868.0,0.46396959]
[1739030023855,0.0817,95892.0,95891.0,0.156427]
[1739030024067,0.0817,95892.0,95891.0,0.2914518]
[1739030024266,0.0817,95892.0,95891.0,0.31606359]
[1739030026037,0.0817,95892.0,95891.0,0.32306359]
[1739030026237,0.0817,95892.0,95891.0,0.33110359]
[1739030026975,0.0817,95892.0,95891.0,0.34010359]
[1739030028043,0.0817,95892.0,95891.0,0.36049594]
[1739030028668,0.0817,95892.0,95891.0,0.35245594]
[1739030039013,0.0817,95892.0,95891.0,0.07313294]
[1739030039207,0.295925,95892.0,95891.0,0.07313294]
[1739030039362,0.295925,95892.0,95891.0,0.04852115]
[1739030039363,0.53992102,95892.0,95891.0,0.04852115]
[1739030039767,0.53992102,95892.0,95891.0,0.016]
[1739030040592,0.53992102,95892.0,95891.0,0.007]
[1739030040842,0.01,95885.0,95880.0,0.00022428]
[1739030041053,0.298143,95881.0,95880.0,0.00022428]
[1739030041198,0.298143,95881.0,95880.0,0.03281266]
[1739030041897,0.298143,95881.0,95880.0,0.00022428]
[1739030042543,0.298143,95881.0,95880.0,0.00922428]
[1739030043328,0.298143,95881.0,95880.0,0.01822428]
[1739030043528,0.298143,95881.0,95880.0,0.00922428]
[1739030043731,0.53213902,95881.0,95880.0,0.01822428]
[1739030044451,0.54213902,95881.0,95880.0,0.00922428]
[1739030044897,0.54313902,95881.0,95880.0,0.01622428]
[1739030046434,0.58938592,95881.0,95880.0,0.00922428]
[1739030046634,0.58938592,95881.0,95880.0,0.00022428]
[1739030047012,0.58938592,95881.0,95880.0,0.00822428]
[1739030047214,0.58938592,95881.0,95880.0,0.00022428]
[1739030047648,0.58938592,95881.0,95880.0,0.00722428]
[1739030047869,0.58938592,95881.0,95880.0,0.00822428]
[1739030048073,0.58938592,95881.0,95872.0,0.0937117]
[1739030048074,0.176456,95873.0,95872.0,0.0937117]
[1739030048253,0.308156,95873.0,95872.0,0.0937117]
[1739030048573,0.54215202,95873.0,95872.0,0.0937117]
[1739030049309,0.54215202,95873.0,95872.0,0.0977117]
[1739030049766,0.53215202,95873.0,95872.0,0.0977117]
[1739030049979,0.54215202,95873.0,95872.0,0.0977117]
[1739030050406,0.54215202,95873.0,95872.0,0.1047117]
[1739030050911,0.54215202,95873.0,95872.0,0.011]
[1739030058933,0.54215202,95873.0,95872.0,0.007]
[1739030059137,0.156462,95870.0,95868.0,0.0001068]
[1739030059341,0.7508189,95873.0,95872.0,0.01]
[1739030059793,0.7508189,95873.0,95872.0,0.003]
[1739030059947,0.3757529,95873.0,95872.0,0.01]
[1739030060150,0.3857529,95873.0,95872.0,0.01]
[1739030060356,0.3857529,95873.0,95872.0,0.03479537]
[1739030060570,0.3857529,95873.0,95872.0,0.01]
[1739030060769,0.3757529,95873.0,95872.0,0.03179537]
[1739030060972,0.3857529,95873.0,95872.0,0.01]
[1739030061174,0.3857529,95873.0,95872.0,0.0347902]
[1739030061415,0.5422089,95873.0,95872.0,0.01]
[1739030061850,0.5422089,95873.0,95872.0,0.007]
[1739030062058,0.5432089,95873.0,95872.0,0.013]
[1739030062253,0.5432089,95873.0,95872.0,0.006]
[1739030062510,0.5422089,95873.0,95868.0,0.0001068]
[1739030062714,0.5422089,95873.0,95872.0,0.03379218]
[1739030062846,0.5422089,95873.0,95872.0,0.009]
[1739030063045,0.5422089,95873.0,95872.0,0.018]
[1739030063457,0.5422089,95873.0,95872.0,0.0001068]
[1739030063856,0.5432089,95873.0,95872.0,0.0071068]
[1739030064287,0.5422089,95873.0,95872.0,0.0001068]
[1739030064691,0.5432089,95873.0,95872.0,0.0061068]
[1739030065248,0.5422089,95873.0,95872.0,0.0001068]
[1739030065425,0.3757529,95873.0,95872.0,0.0071068]
[1739030065621,0.3767529,95873.0,95872.0,0.0071068]
[1739030065919,0.3767529,95873.0,95872.0,0.04089951]
[1739030066687,0.3667529,95873.0,95872.0,0.0071068]
[1739030066890,0.3657529,95873.0,95872.0,0.03389879]
[1739030067119,0.3667529,95873.0,95872.0,0.0151068]
[1739030067325,0.3667529,95873.0,95872.0,0.03989879]
[1739030067477,0.3667529,95873.0,95872.0,0.0151068]
[1739030067676,0.3657529,95873.0,95872.0,0.0338982]
[1739030067884,0.5332089,95873.0,95872.0,0.0408982]
[1739030068330,0.5222089,95873.0,95872.0,0.0338982]
[1739030068736,0.5332089,95873.0,95872.0,0.0308982]
[1739030068947,0.5332089,95873.0,95872.0,0.0061068]
[1739030069156,0.3767529,95873.0,95872.0,0.0151068]
[1739030069356,0.5432089,95873.0,95872.0,0.0151068]
[1739030069563,0.5432089,95873.0,95872.0,0.04889947]
[1739030069764,0.5432089,95873.0,95872.0,0.0241068]
[1739030070042,0.5432089,95873.0,95872.0,0.0151068]
[1739030070258,0.5432089,95873.0,95872.0,0.0241068]
[1739030071004,0.5432089,95873.0,95872.0,0.0181068]
[1739030071193,0.5422089,95873.0,95872.0,0.0181068]
[1739030071324,0.5432089,95873.0,95872.0,0.0251068]
[1739030071953,0.5422089,95873.0,95872.0,0.0181068]
[1739030072368,0.5432089,95873.0,95872.0,0.0241068]
[1739030072581,0.5432089,95873.0,95872.0,0.0061068]
[1739030072800,0.5432089,95873.0,95872.0,0.0151068]
[1739030073657,0.5432089,95873.0,95872.0,0.0061068]
[1739030074096,0.5432089,95873.0,95872.0,0.0151068]
[1739030074256,0.5422089,95873.0,95872.0,0.0091068]
[1739030075388,0.5432089,95873.0,95872.0,0.0161068]
[1739030076398,0.5422089,95873.0,95872.0,0.0001068]
[1739030076600,0.5422089,95873.0,95872.0,0.0091068]
[1739030077597,0.5432089,95873.0,95872.0,0.0151068]
[1739030078003,0.5422089,95873.0,95872.0,0.0091068]
[1739030078431,0.5422089,95873.0,95872.0,0.0001068]
[1739030078851,0.5422089,95873.0,95872.0,0.0091068]
[1739030079180,0.5432089,95873.0,95872.0,0.0161068]
[1739030080644,0.5422089,95873.0,95872.0,0.0091068]
[1739030081022,0.5432089,95873.0,95872.0,0.0151068]
[1739030081603,0.5422089,95873.0,95872.0,0.0091068]
[1739030081803,0.5422089,95873.0,95872.0,0.0001068]
[1739030082153,0.5432089,95873.0,95872.0,0.0071068]
[1739030082456,0.5432089,95873.0,95872.0,0.0161068]
[1739030082640,0.5422089,95873.0,95872.0,0.0091068]
[1739030082789,0.5422089,95873.0,95872.0,0.0001068]
[1739030082990,0.3857529,95873.0,95872.0,0.0001068]
[1739030083492,0.3857529,95873.0,95872.0,0.0338968]
[1739030083836,0.3857529,95873.0,95872.0,0.0248968]
[1739030084521,0.3867529,95873.0,95872.0,0.0308968]
[1739030084895,0.3857529,95873.0,95872.0,0.0248968]
[1739030085255,0.3867529,95873.0,95872.0,0.0318968]
[1739030085673,0.2350529,95873.0,95872.0,0.1635648]
[1739030085905,0.2350529,95873.0,95872.0,0.0161068]
[1739030086119,0.2350529,95873.0,95872.0,0.03189185]
[1739030086351,0.2350529,95873.0,95872.0,0.22093472]
[1739030086515,0.2350529,95873.0,95872.0,0.22993472]
[1739030087368,0.2450529,95873.0,95872.0,0.22993472]
[1739030088281,0.2350529,95873.0,95872.0,0.07347672]
[1739030088499,0.2450529,95873.0,95872.0,0.07347672]
[1739030088954,0.2550529,95873.0,95872.0,0.07347672]
[1739030095883,0.4115089,95873.0,95872.0,0.07347672]
[1739030097411,0.4910089,95873.0,95872.0,0.07347672]
[1739030098051,0.5387089,95873.0,95872.0,0.0161068]
[1739030100923,0.5377089,95873.0,95872.0,0.0091068]
[1739030101409,0.5387089,95873.0,95872.0,0.0161068]
[1739030101647,0.5387089,95873.0,95872.0,0.0091068]
[1739030101888,0.5377089,95873.0,95872.0,0.0001068]
[1739030102133,0.5387089,95873.0,95872.0,0.0061068]
[1739030102370,0.5387089,95873.0,95872.0,0.0151068]
[1739030102572,0.5387089,95873.0,95872.0,0.0061068]
[1739030102774,0.5387089,95873.0,95872.0,0.0151068]
[1739030103867,0.5377089,95873.0,95872.0,0.0091068]
[1739030104089,0.5387089,95873.0,95872.0,0.0151068]
[1739030104313,0.5387089,95873.0,95872.0,0.04771224]
[1739030105243,0.5387089,95873.0,95872.0,0.0151068]
[1739030106208,0.5387089,95873.0,95872.0,0.0061068]
[1739030106612,0.5387089,95873.0,95872.0,0.0151068]
[1739030109461,0.5387089,95873.0,95872.0,0.0061068]
[1739030109606,0.5387089,95873.0,95872.0,0.0151068]
[1739030110071,0.5377089,95873.0,95872.0,0.0001068]
[1739030110276,0.5387089,95873.0,95872.0,0.0151068]
[1739030110674,0.5387089,95873.0,95872.0,0.0061068]
[1739030111348,0.5387089,95873.0,95872.0,0.03871053]
[1739030111827,0.5387089,95873.0,95872.0,0.0061068]
[1739030112047,0.5387089,95873.0,95872.0,0.04771051]
[1739030112200,0.5387089,95873.0,95872.0,0.0151068]
[1739030112782,0.5387089,95873.0,95872.0,0.04771063]
[1739030113514,0.5387089,95873.0,95872.0,0.0151068]
[1739030114390,0.5387089,95873.0,95872.0,0.04771089]
[1739030114569,0.5387089,95873.0,95872.0,0.0151068]
[1739030114747,0.5387089,95873.0,95872.0,0.04771058]
[1739030115470,0.5387089,95873.0,95872.0,0.0151068]
[1739030116071,0.5387089,95873.0,95872.0,0.04771053]
[1739030116483,0.5387089,95873.0,95872.0,0.0151068]
[1739030116853,0.5387089,95873.0,95872.0,0.04771062]
[1739030117055,0.5387089,95873.0,95872.0,0.0151068]
[1739030117957,0.5387089,95873.0,95872.0,0.04771026]
[1739030118778,0.5387089,95873.0,95872.0,0.0151068]
[1739030119322,0.5387089,95873.0,95872.0,0.04771047]
[1739030119700,0.5387089,95873.0,95872.0,0.07258365]
[1739030120103,0.5387089,95873.0,95872.0,0.04771047]
[1739030120504,0.5377089,95873.0,95872.0,0.04171047]
[1739030120711,0.5387089,95873.0,95872.0,0.04771047]
[1739030121351,0.5387089,95873.0,95872.0,0.07258365]
[1739030121577,0.5387089,95873.0,95872.0,0.04771047]
[1739030121952,0.5387089,95873.0,95872.0,0.03871047]
[1739030122403,0.5387089,95873.0,95872.0,0.04771047]
[1739030122619,0.3622529,95873.0,95872.0,0.04771047]
[1739030122799,0.2350529,95873.0,95872.0,0.04771047]
[1739030122993,0.2350529,95873.0,95872.0,0.07258365]
[1739030123210,0.2350529,95873.0,95872.0,0.04771047]
[1739030123511,0.2340529,95873.0,95872.0,0.06658365]
[1739030123683,0.2340529,95873.0,95872.0,0.05758365]
[1739030124068,0.2340529,95873.0,95872.0,0.06658365]
[1739030124258,0.2440529,95873.0,95872.0,0.06658365]
[1739030124453,0.4015089,95873.0,95872.0,0.04771047]
[1739030124654,0.4015089,95873.0,95872.0,0.07258365]
[1739030125273,0.4015089,95873.0,95872.0,0.16629535]
[1739030128193,0.4015089,95873.0,95872.0,0.07258365]
[1739030129005,0.4015089,95873.0,95872.0,0.04771047]
[1739030130891,0.4015089,95873.0,95872.0,0.07258274]
[1739030131224,0.4015089,95873.0,95872.0,0.04771047]
[1739030133227,0.5401089,95873.0,95872.0,0.04771047]
[1739030134697,0.5401089,95873.0,95872.0,0.0151068]
[1739030145064,0.6184089,95873.0,95872.0,0.0151068]
[1739030152442,0.6184089,95873.0,95872.0,0.0061068]
[1739030152615,0.6184089,95873.0,95872.0,0.0001068]
[1739030152616,0.6174089,95873.0,95872.0,0.0001068]
[1739030152819,0.6174089,95873.0,95872.0,0.0051068]
[1739030153020,0.6174089,95873.0,95872.0,0.0101068]
[1739030153390,0.6174089,95873.0,95872.0,0.0051068]
[1739030155933,0.6174089,95873.0,95872.0,0.0061068]
[1739030161119,0.89291255,95873.0,95872.0,0.0061068]
[1739030162033,0.89291255,95873.0,95872.0,0.0001068]
[1739030162443,0.89391255,95873.0,95872.0,0.0041068]
[1739030162802,0.89391255,95873.0,95872.0,0.0001068]
[1739030162989,0.89291255,95873.0,95872.0,0.0011068]
[1739030163199,0.89791255,95873.0,95872.0,0.0011068]
[1739030166383,0.74791255,95873.0,95872.0,0.0011068]
[1739030175270,0.6224089,95873.0,95872.0,0.0011068]
[1739030187793,0.3273529,95873.0,95872.0,0.0011068]
[1739030188110,0.3173529,95873.0,95872.0,0.0011068]
[1739030188313,0.3373529,95873.0,95872.0,0.0247327]
[1739030188605,0.3373529,95873.0,95872.0,0.0011068]
[1739030188778,0.4888089,95873.0,95872.0,0.0001068]
[1739030188985,0.3323529,95873.0,95872.0,0.0001068]
[1739030189122,0.3323529,95873.0,95872.0,0.0041068]
[1739030189342,0.3323529,95873.0,95872.0,0.0237327]
[1739030189617,0.3223529,95873.0,95872.0,0.0237327]
[1739030189761,0.3323529,95873.0,95872.0,0.0277327]
[1739030194518,0.3223529,95873.0,95872.0,0.0277327]
[1739030194758,0.3323529,95873.0,95872.0,0.0277327]
[1739030195687,0.4888089,95873.0,95872.0,0.0277327]
[1739030196107,0.4888089,95873.0,95872.0,0.0041068]
[1739030196882,0.4888089,95873.0,95872.0,0.0032708]
[1739030197312,0.5713089,95873.0,95872.0,0.0032708]
[1739030198579,0.5613089,95873.0,95872.0,0.0032708]
[1739030198913,0.5713089,95873.0,95872.0,0.0032708]
[1739030201532,0.023,95895.0,95872.0,0.0032708]
[1739030201771,0.156456,95873.0,95872.0,0.00340728]
[1739030201957,0.476556,95873.0,95872.0,0.00340728]
[1739030202943,0.476556,95873.0,95872.0,0.00351408]
[1739030203175,0.476556,95873.0,95872.0,0.00024328]
[1739030203470,0.476556,95873.0,95872.0,0.00424328]
[1739030203850,0.476556,95873.0,95872.0,0.00024328]
[1739030204048,0.476556,95873.0,95872.0,0.00424328]
[1739030204420,0.476556,95873.0,95872.0,0.00024328]
[1739030204615,0.476556,95873.0,95872.0,0.00624328]
[1739030205065,0.476556,95873.0,95872.0,0.00024328]
[1739030206468,0.476556,95873.0,95872.0,0.01124328]
[1739030207077,0.476556,95873.0,95872.0,0.00724328]
[1739030207299,0.476556,95873.0,95872.0,0.00324328]
[1739030207691,0.476556,95873.0,95872.0,0.00924328]
[1739030211356,0.552656,95873.0,95872.0,0.00924328]
[1739030212826,0.552656,95873.0,95872.0,0.00624328]
[1739030213275,0.552656,95873.0,95872.0,0.00324328]
[1739030213890,0.552656,95873.0,95872.0,0.00624328]
[1739030214290,0.552656,95873.0,95872.0,0.00924328]
[1739030214741,0.552656,95873.0,95872.0,0.00024328]
[1739030215073,0.552656,95873.0,95872.0,0.00424328]
[1739030216120,0.552656,95873.0,95872.0,0.00724328]
[1739030216271,0.552656,95873.0,95872.0,0.00324328]
[1739030216694,0.552656,95873.0,95872.0,0.00624328]
[1739030216894,0.552656,95873.0,95872.0,0.00024328]
[1739030217281,0.552656,95873.0,95872.0,0.00424328]
[1739030217536,0.552656,95873.0,95872.0,0.00024328]
[1739030217898,0.552656,95873.0,95872.0,0.00924328]
[1739030218095,0.552656,95873.0,95872.0,0.00324328]
[1739030219693,0.552656,95873.0,95872.0,0.00024328]
[1739030219918,0.3201,95873.0,95872.0,0.00424328]
[1739030220127,0.476556,95873.0,95872.0,0.00024328]
[1739030220542,0.476556,95873.0,95872.0,0.00524328]
[1739030220877,0.476556,95873.0,95872.0,0.00024328]
[1739030221229,0.476556,95873.0,95872.0,0.00924328]
[1739030221402,0.476556,95873.0,95872.0,0.00324328]
[1739030221605,0.3201,95873.0,95872.0,0.00324328]
[1739030221811,0.3201,95873.0,95872.0,0.01024328]
[1739030222002,0.3201,95873.0,95872.0,0.00724328]
[1739030222985,0.3201,95873.0,95872.0,0.02386386]
[1739030223182,0.3201,95873.0,95872.0,0.00024328]
[1739030223426,0.3201,95873.0,95872.0,0.00924328]
[1739030223940,0.3201,95873.0,95872.0,0.00624328]
[1739030224179,0.3201,95873.0,95872.0,0.00324328]
[1739030224531,0.3201,95873.0,95872.0,0.01024328]
[1739030224735,0.3201,95873.0,95872.0,0.00324328]
[1739030225157,0.3201,95873.0,95872.0,0.00924328]
[1739030225355,0.476556,95873.0,95872.0,0.00924328]
[1739030225741,0.3201,95873.0,95872.0,0.00924328]
[1739030227400,0.3201,95873.0,95872.0,0.03286101]
[1739030227607,0.3201,95873.0,95872.0,0.00924328]
[1739030228030,0.31951677,95873.0,95872.0,0.00924328]
[1739030228252,0.31951677,95873.0,95872.0,0.03286101]
[1739030228451,0.31951677,95873.0,95872.0,0.00924328]
[1739030228872,0.47597277,95873.0,95872.0,0.03286101]
[1739030229075,0.47597277,95873.0,95872.0,0.00924328]
[1739030229602,0.55797277,95873.0,95872.0,0.00924328]
[1739030239046,0.55797277,95873.0,95872.0,0.00024328]
[1739030239243,0.55797277,95873.0,95872.0,0.00324328]
[1739030239451,0.55797277,95873.0,95872.0,0.00924328]
[1739030242583,0.55797277,95873.0,95872.0,0.00024328]
[1739030242780,0.55797277,95873.0,95872.0,0.00624328]
[1739030242988,0.40151677,95873.0,95872.0,0.00924328]
[1739030243195,0.40151677,95873.0,95872.0,0.00324328]
[1739030243389,0.55797277,95873.0,95872.0,0.00624328]
[1739030243827,0.55797277,95873.0,95872.0,0.00324328]
[1739030244171,0.55797277,95873.0,95872.0,0.00924328]
[1739030244977,0.55797277,95873.0,95872.0,0.00624328]
[1739030245390,0.55797277,95873.0,95872.0,0.00224328]
[1739030245593,0.55797277,95873.0,95872.0,0.00824328]
[1739030248574,0.40151677,95873.0,95872.0,0.00824328]
[1739030248953,0.40151677,95873.0,95872.0,0.03466336]
[1739030249522,0.40174105,95873.0,95872.0,0.03466336]
[1739030250591,0.55819705,95873.0,95872.0,0.03466336]
[1739030250815,0.55819705,95873.0,95872.0,0.00824328]
[1739030253957,0.55819705,95873.0,95872.0,0.00224328]
[1739030254308,0.55819705,95873.0,95872.0,0.00624328]
[1739030254523,0.55819705,95873.0,95872.0,0.00824328]
[1739030255067,0.55819705,95873.0,95872.0,0.00624328]
[1739030255361,0.55819705,95873.0,95872.0,0.00824328]
[1739030255571,0.55819705,95873.0,95872.0,0.00224328]
[1739030255799,0.55819705,95873.0,95872.0,0.00824328]
[1739030262883,0.60639705,95873.0,95872.0,0.00824328]
[1739030263077,0.60639705,95873.0,95872.0,0.00224328]
[1739030263281,0.60639705,95873.0,95872.0,0.00824328]
[1739030263706,0.60639705,95873.0,95872.0,0.00224328]
[1739030263896,0.60639705,95873.0,95872.0,0.00624328]
[1739030264284,0.60639705,95873.0,95872.0,0.00224328]
[1739030264645,0.60639705,95873.0,95872.0,0.00724328]
[1739030264789,0.60639705,95873.0,95872.0,0.00524328]
[1739030265531,0.60639705,95873.0,95872.0,0.00624328]
[1739030266155,0.60639705,95873.0,95872.0,0.00124328]
[1739030266316,0.60639705,95873.0,95872.0,0.00624328]
[1739030267166,0.60639705,95873.0,95872.0,0.00024328]
[1739030267467,0.60639705,95873.0,95872.0,0.00624328]
[1739030267669,0.60639705,95873.0,95872.0,0.00124328]
[1739030267867,0.60639705,95873.0,95872.0,0.00024328]
[1739030268074,0.60639705,95873.0,95872.0,0.00524328]
[1739030268297,0.60639705,95873.0,95872.0,0.00624328]
[1739030268677,0.60639705,95873.0,95872.0,0.00524328]
[1739030269258,0.60639705,95873.0,95872.0,0.00024328]
[1739030269683,0.60639705,95873.0,95872.0,0.00324328]
[1739030269880,0.60639705,95873.0,95872.0,0.00024328]
[1739030270303,0.60639705,95873.0,95872.0,0.00524328]
[1739030270700,0.60639705,95873.0,95872.0,0.00624328]
[1739030274865,0.44994105,95873.0,95872.0,0.00624328]
[1739030275224,0.31974105,95873.0,95872.0,0.16270128]
[1739030275651,0.31974105,95873.0,95872.0,0.18911654]
[1739030276647,0.31974105,95873.0,95872.0,0.20336435]
[1739030278133,0.31974105,95873.0,95872.0,0.04690635]
[1739030278534,0.00022428,95873.0,95872.0,0.04690635]
[1739030280318,0.00022428,95873.0,95872.0,0.20336435]
[1739030286094,0.00022428,95873.0,95872.0,0.20236435]
[1739030286302,0.00022428,95873.0,95872.0,0.19736435]
[1739030286503,0.00122428,95873.0,95872.0,0.21336435]
[1739030286965,0.00022428,95873.0,95872.0,0.20636435]
[1739030287526,0.00122428,95873.0,95872.0,0.21336435]
[1739030287873,0.00122428,95873.0,95872.0,0.315868]
[1739030288661,0.00122428,95873.0,95872.0,0.3484252]
[1739030290629,0.00122428,95873.0,95872.0,0.4272252]
[1739030292058,0.00122428,95873.0,95872.0,0.6224252]
[1739030292743,0.00122428,95873.0,95872.0,0.6154252]
[1739030293099,0.08372505,95899.0,95878.0,0.15]
[1739030293301,0.08372505,95899.0,95895.0,0.156421]
[1739030293615,0.08372505,95899.0,95895.0,0.25892465]
[1739030293758,0.00022428,95899.0,95895.0,0.28524344]
[1739030295612,0.00022428,95899.0,95895.0,0.30608555]
[1739030295814,0.00022428,95899.0,95895.0,0.31508555]
[1739030296222,0.00022428,95899.0,95895.0,0.32408555]
[1739030297680,0.00022428,95899.0,95895.0,0.33827946]
[1739030298529,0.00022428,95899.0,95895.0,0.23577581]
[1739030299355,0.00022428,95899.0,95895.0,0.20073979]
[1739030299551,0.07792428,95896.0,95895.0,0.20073979]
[1739030300493,0.00022428,95896.0,95895.0,0.20073979]
[1739030305839,0.00022428,95896.0,95895.0,0.19173979]
[1739030306043,0.00022428,95896.0,95895.0,0.18273979]
[1739030306250,0.00022428,95896.0,95895.0,0.19173979]
[1739030306450,0.00022428,95896.0,95895.0,0.20073979]
[1739030310874,0.00022428,95896.0,95895.0,0.30324344]
[1739030314285,0.00022428,95896.0,95895.0,0.20073979]
[1739030315102,0.00022428,95896.0,95895.0,0.19173979]
[1739030315408,0.00022428,95896.0,95895.0,0.20073979]
[1739030315649,0.07962428,95896.0,95895.0,0.04431879]
[1739030316055,0.07962428,95896.0,95895.0,0.03531879]
[1739030316427,0.07962428,95896.0,95895.0,0.04431879]
[1739030316659,0.07962428,95896.0,95895.0,0.03531879]
[1739030316995,0.39914105,95896.0,95895.0,0.04431879]
[1739030317172,0.39914105,95896.0,95895.0,0.03531879]
[1739030318126,0.40014105,95896.0,95895.0,0.04231879]
[1739030320021,0.55656005,95896.0,95895.0,0.04231879]
[1739030320253,0.60636005,95896.0,95895.0,0.04231879]
[1739030320446,0.60636005,95896.0,95895.0,0.016]
[1739030321250,0.60536005,95896.0,95895.0,0.009]
[1739030321450,0.60536005,95896.0,95895.0,0.015]
[1739030321989,0.60536005,95896.0,95895.0,0.009]
[1739030322399,0.156426,95892.0,95885.0,0.156435]
[1739030322592,0.44894105,95896.0,95884.0,0.208584]
[1739030322827,0.44894105,95896.0,95882.0,0.208589]
[1739030323119,0.208567,95893.0,95885.0,0.156436]
[1739030323321,0.156425,95892.0,95885.0,0.156436]
[1739030323823,0.156429,95890.0,95884.0,0.156438]
[1739030324932,0.156429,95890.0,95885.0,0.006]
[1739030325346,0.001,95892.0,95885.0,0.006]
[1739030325553,0.15643,95890.0,95885.0,0.006]
[1739030326289,0.001,95892.0,95885.0,0.015]
[1739030326445,0.001,95892.0,95882.0,0.208589]
[1739030326446,0.156426,95892.0,95882.0,0.208589]
[1739030326648,0.001,95890.0,95886.0,0.02753422]
[1739030326849,0.001,95890.0,95886.0,0.156435]
[1739030327045,0.001,95890.0,95887.0,0.02753398]
[1739030327381,0.156426,95892.0,95887.0,0.02753398]
[1739030328125,0.156427,95891.0,95887.0,0.02753398]
[1739030329058,0.31951677,95890.0,95887.0,0.02753398]
[1739030329571,0.31951677,95890.0,95887.0,0.009]
[1739030329731,0.31951677,95890.0,95887.0,0.014]
[1739030329951,0.31951677,95890.0,95887.0,0.005]
[1739030330303,0.31951677,95890.0,95887.0,0.009]
[1739030330520,0.31951677,95890.0,95887.0,0.170434]
[1739030330992,0.31951677,95890.0,95888.0,0.0277915]
[1739030331391,0.31951677,95890.0,95887.0,0.014]
[1739030332108,0.31951677,95890.0,95888.0,0.02780762]
[1739030332270,0.31951677,95890.0,95888.0,0.03580762]
[1739030332677,0.31951677,95890.0,95888.0,0.03280762]
[1739030332916,0.31951677,95890.0,95889.0,0.15643]
[1739030333354,0.31951677,95890.0,95889.0,0.18423738]
[1739030335568,0.31951677,95890.0,95889.0,0.19223738]
[1739030335933,0.31951677,95890.0,95889.0,0.19623738]
[1739030341632,0.31951677,95890.0,95889.0,0.03980738]
[1739030341842,0.31951677,95890.0,95889.0,0.012]
[1739030342045,0.31951677,95890.0,95889.0,0.03980899]
[1739030342245,0.31951677,95890.0,95889.0,0.16843]
[1739030342473,0.31951677,95890.0,95889.0,0.19623899]
[1739030344436,0.31951677,95890.0,95889.0,0.29874264]
[1739030346533,0.31951677,95890.0,95889.0,0.42464264]
[1739030346876,0.0001068,95892.0,95891.0,0.156427]
[1739030347088,0.0001068,95892.0,95891.0,0.2925343]